[Event "Early-Titled-Tuesday-Blitz-September-12-2023"]
[Site "Chess.com"]
[Date "2023.09.12"]
[Round "8"]
[White "Lion-Al-Messi"]
[Black "fireheart92"]
[Result "0-1"]
[WhiteElo "2615"]
[BlackElo "2969"]
[TimeControl "180+1"]
[EndTime "9:27:00 PDT"]
[Termination "fireheart92 won by resignation"]

1. e4 {[%clk 0:03:00.9]} 1... c5 {[%clk 0:02:57.4]} 2. Nf3 {[%clk 0:03:01]} 2...
Nc6 {[%clk 0:02:57.5]} 3. d4 {[%clk 0:03:01.3]} 3... cxd4 {[%clk 0:02:58.4]} 4.
Nxd4 {[%clk 0:03:01.9]} 4... e5 {[%clk 0:02:59]} 5. Nb5 {[%clk 0:03:01.3]} 5...
d6 {[%clk 0:02:59.3]} 6. c4 {[%clk 0:03:00.7]} 6... g6 {[%clk 0:02:59.1]} 7.
N1c3 {[%clk 0:03:00.6]} 7... a6 {[%clk 0:02:59.3]} 8. Na3 {[%clk 0:03:00.8]}
8... Bg7 {[%clk 0:02:59.6]} 9. Nc2 {[%clk 0:03:01.4]} 9... Be6 {[%clk
0:02:58.5]} 10. Be3 {[%clk 0:03:01.5]} 10... Nf6 {[%clk 0:02:57.3]} 11. f3
{[%clk 0:03:01]} 11... O-O {[%clk 0:02:56.9]} 12. Qd2 {[%clk 0:03:00.7]} 12...
Nh5 {[%clk 0:02:55.1]} 13. Rd1 {[%clk 0:02:59.3]} 13... Rc8 {[%clk 0:01:50.3]}
14. Qxd6 {[%clk 0:02:54.9]} 14... Nd4 {[%clk 0:01:50.3]} 15. Qxd8 {[%clk
0:02:45.4]} 15... Rfxd8 {[%clk 0:01:31.3]} 16. Na3 {[%clk 0:02:32.1]} 16... Bf8
{[%clk 0:01:20.5]} 17. Ncb1 {[%clk 0:02:20.8]} 17... b5 {[%clk 0:00:59.8]} 18.
Bxd4 {[%clk 0:02:11.7]} 18... exd4 {[%clk 0:00:58.8]} 19. cxb5 {[%clk
0:02:11.9]} 19... Bb4+ {[%clk 0:00:54]} 20. Kf2 {[%clk 0:02:11.8]} 20... d3
{[%clk 0:00:48.4]} 21. Bxd3 {[%clk 0:02:10.7]} 21... Bc5+ {[%clk 0:00:48.4]} 22.
Ke1 {[%clk 0:02:02.2]} 22... Bb4+ {[%clk 0:00:46]} 23. Kf2 {[%clk 0:01:41]}
23... Bc5+ {[%clk 0:00:45.1]} 24. Kf1 {[%clk 0:01:25.5]} 24... Nf4 {[%clk
0:00:40.6]} 25. Be2 {[%clk 0:01:24.3]} 25... axb5 {[%clk 0:00:34.9]} 26. g3
{[%clk 0:01:15.2]} 26... Bh3+ {[%clk 0:00:32.2]} 27. Ke1 {[%clk 0:01:15.4]}
27... Ng2+ {[%clk 0:00:28.5]} 28. Kf1 {[%clk 0:01:15.6]} 28... Ne3+ {[%clk
0:00:28.3]} 29. Ke1 {[%clk 0:01:15.9]} 29... Nxd1 {[%clk 0:00:28.1]} 30. Bxd1
{[%clk 0:01:16.8]} 30... Bg2 {[%clk 0:00:28.1]} 0-1

[Event "Early-Titled-Tuesday-Blitz-September-12-2023"]
[Site "Chess.com"]
[Date "2023.09.12"]
[Round "8"]
[White "chessdjw"]
[Black "vladislavkovalev"]
[Result "0-1"]
[WhiteElo "2756"]
[BlackElo "2899"]
[TimeControl "180+1"]
[EndTime "9:27:04 PDT"]
[Termination "vladislavkovalev won on time"]

1. e4 {[%clk 0:02:54.5]} 1... e5 {[%clk 0:03:00.1]} 2. Nf3 {[%clk 0:02:54.6]}
2... Nc6 {[%clk 0:03:00]} 3. Bc4 {[%clk 0:02:55.2]} 3... Nf6 {[%clk 0:03:00.1]}
4. d3 {[%clk 0:02:55.3]} 4... Bc5 {[%clk 0:02:59.5]} 5. O-O {[%clk 0:02:50.7]}
5... d6 {[%clk 0:02:57.8]} 6. c3 {[%clk 0:02:50.9]} 6... a6 {[%clk 0:02:58.2]}
7. a4 {[%clk 0:02:44.7]} 7... h6 {[%clk 0:02:57.9]} 8. Re1 {[%clk 0:02:41.1]}
8... O-O {[%clk 0:02:57.1]} 9. h3 {[%clk 0:02:37.3]} 9... Be6 {[%clk 0:02:51.5]}
10. Bxe6 {[%clk 0:02:36.4]} 10... fxe6 {[%clk 0:02:52.4]} 11. b4 {[%clk
0:02:36.4]} 11... Ba7 {[%clk 0:02:52.4]} 12. Nbd2 {[%clk 0:02:27.1]} 12... Nh5
{[%clk 0:02:51.4]} 13. Nf1 {[%clk 0:02:14.3]} 13... Nf4 {[%clk 0:02:45.2]} 14.
Bxf4 {[%clk 0:02:13.6]} 14... Rxf4 {[%clk 0:02:46.1]} 15. Ra2 {[%clk 0:02:10.2]}
15... Ne7 {[%clk 0:02:41]} 16. g3 {[%clk 0:01:55.9]} 16... Rf7 {[%clk 0:02:39]}
17. Nh4 {[%clk 0:01:45.2]} 17... Qd7 {[%clk 0:02:24.6]} 18. Ne3 {[%clk
0:01:30.9]} 18... Raf8 {[%clk 0:02:23.1]} 19. Kg2 {[%clk 0:01:13.2]} 19... g5
{[%clk 0:02:16.2]} 20. Qg4 {[%clk 0:00:56.6]} 20... Kh7 {[%clk 0:02:14.9]} 21.
d4 {[%clk 0:00:17.3]} 21... exd4 {[%clk 0:02:06.2]} 22. cxd4 {[%clk 0:00:14.1]}
22... Bxd4 {[%clk 0:01:54.4]} 23. e5 {[%clk 0:00:11.1]} 23... dxe5 {[%clk
0:01:46.6]} 24. Qe4+ {[%clk 0:00:10.9]} 24... Kg7 {[%clk 0:01:47.2]} 25. Ng4
{[%clk 0:00:05.1]} 25... Qc6 {[%clk 0:01:34.5]} 26. Nf3 {[%clk 0:00:01.8]} 26...
Qxe4 {[%clk 0:01:24.8]} 0-1

[Event "Early-Titled-Tuesday-Blitz-September-12-2023"]
[Site "Chess.com"]
[Date "2023.09.12"]
[Round "8"]
[White "Iskusnyh"]
[Black "Rosh1610"]
[Result "0-1"]
[WhiteElo "2618"]
[BlackElo "2449"]
[TimeControl "180+1"]
[EndTime "9:27:11 PDT"]
[Termination "Rosh1610 won on time"]

1. d4 {[%clk 0:03:00.9]} 1... Nf6 {[%clk 0:02:57.3]} 2. c4 {[%clk 0:03:00.8]}
2... e6 {[%clk 0:02:57.6]} 3. g3 {[%clk 0:03:00.7]} 3... d5 {[%clk 0:02:56.9]}
4. Bg2 {[%clk 0:03:00.5]} 4... dxc4 {[%clk 0:02:57]} 5. Nf3 {[%clk 0:03:00.8]}
5... c5 {[%clk 0:02:56.3]} 6. O-O {[%clk 0:02:55.8]} 6... cxd4 {[%clk
0:02:56.3]} 7. Na3 {[%clk 0:02:46.7]} 7... Bxa3 {[%clk 0:02:54.7]} 8. bxa3
{[%clk 0:02:44.9]} 8... Nc6 {[%clk 0:02:55.1]} 9. Qc2 {[%clk 0:02:37.7]} 9...
O-O {[%clk 0:02:53.2]} 10. Qxc4 {[%clk 0:02:37.2]} 10... e5 {[%clk 0:02:52.7]}
11. Rb1 {[%clk 0:02:30.8]} 11... Be6 {[%clk 0:02:52]} 12. Qb5 {[%clk 0:02:19.8]}
12... Bxa2 {[%clk 0:02:48.8]} 13. Rb2 {[%clk 0:02:18.7]} 13... Bd5 {[%clk
0:02:48.2]} 14. Bg5 {[%clk 0:02:05.2]} 14... a6 {[%clk 0:02:37.1]} 15. Qxb7
{[%clk 0:01:52.6]} 15... Rb8 {[%clk 0:02:35.8]} 16. Qxb8 {[%clk 0:01:31.7]}
16... Nxb8 {[%clk 0:02:35]} 17. Rc1 {[%clk 0:01:31.3]} 17... Nc6 {[%clk
0:02:34.7]} 18. Rc5 {[%clk 0:01:26.1]} 18... e4 {[%clk 0:02:33.6]} 19. Nd2
{[%clk 0:01:22.5]} 19... Re8 {[%clk 0:02:32]} 20. Rbc2 {[%clk 0:01:12.6]} 20...
Qd6 {[%clk 0:02:30.2]} 21. Bf4 {[%clk 0:01:04.4]} 21... Qe6 {[%clk 0:02:26.2]}
22. e3 {[%clk 0:00:55.4]} 22... Nd7 {[%clk 0:02:23.9]} 23. exd4 {[%clk
0:00:41.4]} 23... Nxd4 {[%clk 0:02:24.8]} 24. Be3 {[%clk 0:00:14.6]} 24... Nxc2
{[%clk 0:02:23]} 25. Rxc2 {[%clk 0:00:15.5]} 25... Nf6 {[%clk 0:02:19.5]} 26. h3
{[%clk 0:00:15.1]} 26... Rc8 {[%clk 0:02:18.4]} 27. Rb2 {[%clk 0:00:14.6]} 27...
Rc1+ {[%clk 0:02:15.5]} 28. Kh2 {[%clk 0:00:13.9]} 28... Rc8 {[%clk 0:02:13]}
29. Rb6 {[%clk 0:00:12.4]} 29... Qe7 {[%clk 0:02:08.2]} 30. Rxa6 {[%clk
0:00:12.1]} 30... h5 {[%clk 0:02:07.2]} 31. Ra7 {[%clk 0:00:11.2]} 31... Qe6
{[%clk 0:02:06.6]} 32. a4 {[%clk 0:00:10]} 32... h4 {[%clk 0:02:05.3]} 33. Nf1
{[%clk 0:00:08.8]} 33... hxg3+ {[%clk 0:02:03.9]} 34. Nxg3 {[%clk 0:00:07.6]}
34... Qe5 {[%clk 0:02:02.8]} 35. Ra5 {[%clk 0:00:05.3]} 35... Nh5 {[%clk
0:02:01.7]} 36. Rb5 {[%clk 0:00:03.6]} 36... Nxg3 {[%clk 0:02:00.6]} 37. fxg3
{[%clk 0:00:04.5]} 37... Rc2 {[%clk 0:01:58.8]} 38. Bf4 {[%clk 0:00:03.3]} 38...
Qd4 {[%clk 0:01:57.2]} 0-1

[Event "Early-Titled-Tuesday-Blitz-September-12-2023"]
[Site "Chess.com"]
[Date "2023.09.12"]
[Round "8"]
[White "zverr1"]
[Black "ChEsper99"]
[Result "1-0"]
[WhiteElo "2486"]
[BlackElo "2225"]
[TimeControl "180+1"]
[EndTime "9:27:11 PDT"]
[Termination "zverr1 won on time"]

1. e4 {[%clk 0:03:00.2]} 1... c5 {[%clk 0:02:57.8]} 2. Nf3 {[%clk 0:03:00.5]}
2... d6 {[%clk 0:02:56.3]} 3. d4 {[%clk 0:02:59.1]} 3... cxd4 {[%clk 0:02:57.2]}
4. Nxd4 {[%clk 0:02:59.3]} 4... Nf6 {[%clk 0:02:57.6]} 5. Nc3 {[%clk 0:03:00]}
5... a6 {[%clk 0:02:57.9]} 6. Be2 {[%clk 0:02:59.8]} 6... e5 {[%clk 0:02:57.8]}
7. Nb3 {[%clk 0:03:00.5]} 7... Be7 {[%clk 0:02:57]} 8. Be3 {[%clk 0:02:58.5]}
8... Be6 {[%clk 0:02:53.8]} 9. O-O {[%clk 0:02:58.3]} 9... O-O {[%clk
0:02:53.7]} 10. Qd2 {[%clk 0:02:58.8]} 10... Qc7 {[%clk 0:02:31.8]} 11. Bf3
{[%clk 0:02:53.7]} 11... b5 {[%clk 0:02:28.9]} 12. a4 {[%clk 0:02:50.9]} 12...
b4 {[%clk 0:02:28.4]} 13. Nd5 {[%clk 0:02:51.4]} 13... Bxd5 {[%clk 0:02:15]} 14.
exd5 {[%clk 0:02:52.3]} 14... a5 {[%clk 0:02:09.2]} 15. Rfc1 {[%clk 0:02:44.9]}
15... Nbd7 {[%clk 0:02:08.1]} 16. c4 {[%clk 0:02:40.7]} 16... bxc3 {[%clk
0:02:08]} 17. Rxc3 {[%clk 0:02:39.2]} 17... Qb7 {[%clk 0:01:59.7]} 18. Qc2
{[%clk 0:02:26.4]} 18... Rfc8 {[%clk 0:01:19.1]} 19. Rc6 {[%clk 0:02:22]} 19...
e4 {[%clk 0:00:47.5]} 20. Bxe4 {[%clk 0:02:21.4]} 20... Nxe4 {[%clk 0:00:47.5]}
21. Qxe4 {[%clk 0:02:22.3]} 21... Nf6 {[%clk 0:00:24.8]} 22. Qc4 {[%clk
0:02:18.9]} 22... Nxd5 {[%clk 0:00:21.6]} 23. Nxa5 {[%clk 0:02:13.7]} 23... Rxc6
{[%clk 0:00:15.3]} 24. Qxc6 {[%clk 0:02:00.8]} 24... Qxc6 {[%clk 0:00:07.1]} 25.
Nxc6 {[%clk 0:02:01.7]} 25... Bf6 {[%clk 0:00:07.2]} 26. Bd4 {[%clk 0:01:59.8]}
26... Bxd4 {[%clk 0:00:04.5]} 27. Nxd4 {[%clk 0:02:00.7]} 27... Rb8 {[%clk
0:00:04.4]} 28. Nb5 {[%clk 0:01:53.4]} 28... Kf8 {[%clk 0:00:02.5]} 29. g3
{[%clk 0:01:53.8]} 29... Ke7 {[%clk 0:00:02.5]} 30. Re1+ {[%clk 0:01:51.3]}
30... Kd7 {[%clk 0:00:02.6]} 31. Rd1 {[%clk 0:01:52.2]} 31... Kc6 {[%clk
0:00:02.7]} 32. Rc1+ {[%clk 0:01:47]} 32... Kd7 {[%clk 0:00:01.8]} 33. Rc4
{[%clk 0:01:43.7]} 33... Ke6 {[%clk 0:00:01.6]} 34. Rc6 {[%clk 0:01:42]} 1-0

[Event "Early-Titled-Tuesday-Blitz-September-12-2023"]
[Site "Chess.com"]
[Date "2023.09.12"]
[Round "8"]
[White "Shield12"]
[Black "splendidkid"]
[Result "0-1"]
[WhiteElo "2959"]
[BlackElo "2786"]
[TimeControl "180+1"]
[EndTime "9:27:22 PDT"]
[Termination "splendidkid won by resignation"]

1. b4 {[%clk 0:03:00.9]} 1... Nf6 {[%clk 0:02:56.4]} 2. Bb2 {[%clk 0:03:01.4]}
2... g6 {[%clk 0:02:51.6]} 3. Nf3 {[%clk 0:03:01]} 3... Bg7 {[%clk 0:02:51.9]}
4. e3 {[%clk 0:03:01.9]} 4... O-O {[%clk 0:02:51.8]} 5. c4 {[%clk 0:03:02]} 5...
d6 {[%clk 0:02:39.7]} 6. d4 {[%clk 0:03:02.2]} 6... b6 {[%clk 0:02:20.4]} 7. Be2
{[%clk 0:03:01.4]} 7... Bb7 {[%clk 0:02:20.5]} 8. O-O {[%clk 0:03:02]} 8... Nbd7
{[%clk 0:02:21]} 9. Nc3 {[%clk 0:03:02.4]} 9... c5 {[%clk 0:01:41.8]} 10. a3
{[%clk 0:03:01.7]} 10... Ne4 {[%clk 0:01:38.5]} 11. Nxe4 {[%clk 0:03:01.3]}
11... Bxe4 {[%clk 0:01:39]} 12. Nd2 {[%clk 0:03:02.2]} 12... Bb7 {[%clk
0:01:39.2]} 13. Bf3 {[%clk 0:03:01.8]} 13... Qc7 {[%clk 0:01:39.7]} 14. Rc1
{[%clk 0:02:58.9]} 14... Rfe8 {[%clk 0:01:33.5]} 15. Qe2 {[%clk 0:02:58.6]}
15... Rab8 {[%clk 0:01:30.6]} 16. Rfd1 {[%clk 0:02:58.1]} 16... h6 {[%clk
0:01:29.6]} 17. Nb3 {[%clk 0:02:56.7]} 17... Kh7 {[%clk 0:01:28.9]} 18. h3
{[%clk 0:02:51]} 18... a6 {[%clk 0:01:27.8]} 19. Bxb7 {[%clk 0:02:48.7]} 19...
Rxb7 {[%clk 0:01:27.5]} 20. e4 {[%clk 0:02:48.5]} 20... Rbb8 {[%clk 0:01:21.3]}
21. Qd2 {[%clk 0:02:39.1]} 21... Rbd8 {[%clk 0:01:19.3]} 22. Bc3 {[%clk
0:02:34.7]} 22... cxb4 {[%clk 0:01:14.6]} 23. Bxb4 {[%clk 0:02:34.6]} 23... a5
{[%clk 0:01:11.6]} 24. Bc3 {[%clk 0:02:34.9]} 24... Qxc4 {[%clk 0:01:11.3]} 25.
Qb2 {[%clk 0:02:35.5]} 25... Qb5 {[%clk 0:01:09.3]} 26. Qa2 {[%clk 0:02:25.3]}
26... Rc8 {[%clk 0:01:08.7]} 27. Nd2 {[%clk 0:02:24.5]} 27... Qa4 {[%clk
0:01:06.3]} 28. Qxf7 {[%clk 0:02:19.8]} 28... Qxa3 {[%clk 0:00:45.5]} 29. Nb1
{[%clk 0:02:17.9]} 29... Qa4 {[%clk 0:00:45.2]} 30. f4 {[%clk 0:02:11.6]} 30...
Nf6 {[%clk 0:00:45.2]} 31. e5 {[%clk 0:02:07.3]} 31... Ne4 {[%clk 0:00:43.6]}
32. f5 {[%clk 0:02:04.2]} 32... Nxc3 {[%clk 0:00:34.7]} 33. Nxc3 {[%clk
0:02:03.2]} 33... Rxc3 {[%clk 0:00:33.5]} 34. fxg6+ {[%clk 0:02:02.8]} 34... Kh8
{[%clk 0:00:33.9]} 35. Ra1 {[%clk 0:01:52.6]} 35... Qc6 {[%clk 0:00:29.1]} 36.
exd6 {[%clk 0:01:50.9]} 36... exd6 {[%clk 0:00:27.8]} 37. Re1 {[%clk 0:01:38.1]}
37... Rf8 {[%clk 0:00:27.4]} 38. Qe7 {[%clk 0:01:36.7]} 38... Rc2 {[%clk
0:00:25.6]} 39. Re2 {[%clk 0:01:36.4]} 39... Rxe2 {[%clk 0:00:23.6]} 40. Qxe2
{[%clk 0:01:37.3]} 40... Bxd4+ {[%clk 0:00:23.9]} 41. Kh2 {[%clk 0:01:37.6]}
41... Bxa1 {[%clk 0:00:24.1]} 0-1

[Event "Early-Titled-Tuesday-Blitz-September-12-2023"]
[Site "Chess.com"]
[Date "2023.09.12"]
[Round "8"]
[White "javierfreilemartin"]
[Black "JAN2404"]
[Result "1-0"]
[WhiteElo "2306"]
[BlackElo "2008"]
[TimeControl "180+1"]
[EndTime "9:27:29 PDT"]
[Termination "javierfreilemartin won by checkmate"]

1. c4 {[%clk 0:02:48.4]} 1... f6 {[%clk 0:02:58.9]} 2. Nc3 {[%clk 0:02:47.3]}
2... c5 {[%clk 0:02:54.4]} 3. Nf3 {[%clk 0:02:46.8]} 3... Nc6 {[%clk 0:02:53.4]}
4. e3 {[%clk 0:02:46.8]} 4... e6 {[%clk 0:02:51.3]} 5. d4 {[%clk 0:02:46.8]}
5... cxd4 {[%clk 0:02:48]} 6. exd4 {[%clk 0:02:46.7]} 6... d5 {[%clk 0:02:47.2]}
7. c5 {[%clk 0:02:44.3]} 7... Nge7 {[%clk 0:02:42.2]} 8. Bb5 {[%clk 0:02:41.5]}
8... Ng6 {[%clk 0:02:28.7]} 9. O-O {[%clk 0:02:40]} 9... Be7 {[%clk 0:02:27.2]}
10. Re1 {[%clk 0:02:39.8]} 10... O-O {[%clk 0:02:25.8]} 11. a3 {[%clk
0:02:40.1]} 11... a6 {[%clk 0:02:23.6]} 12. Bd3 {[%clk 0:02:37.6]} 12... a5
{[%clk 0:02:22.3]} 13. Rb1 {[%clk 0:02:35.5]} 13... b6 {[%clk 0:02:09.4]} 14. b4
{[%clk 0:02:33.1]} 14... axb4 {[%clk 0:02:06.2]} 15. axb4 {[%clk 0:02:33.3]}
15... bxc5 {[%clk 0:01:26.1]} 16. dxc5 {[%clk 0:02:32.3]} 16... d4 {[%clk
0:01:22.3]} 17. Ne4 {[%clk 0:02:23.7]} 17... Nce5 {[%clk 0:01:08.9]} 18. Nxe5
{[%clk 0:02:11.9]} 18... Nxe5 {[%clk 0:01:07.9]} 19. b5 {[%clk 0:02:07.5]} 19...
f5 {[%clk 0:01:00.3]} 20. b6 {[%clk 0:01:50.8]} 20... Nxd3 {[%clk 0:00:51]} 21.
Qxd3 {[%clk 0:01:49]} 21... fxe4 {[%clk 0:00:51.1]} 22. Qxe4 {[%clk 0:01:48.8]}
22... Rb8 {[%clk 0:00:48.2]} 23. Bf4 {[%clk 0:01:45.9]} 23... Bb7 {[%clk
0:00:47.4]} 24. Qxe6+ {[%clk 0:01:45.6]} 24... Kh8 {[%clk 0:00:45.7]} 25. Bxb8
{[%clk 0:01:45]} 25... Qxb8 {[%clk 0:00:35.1]} 26. Qxe7 {[%clk 0:01:41.1]} 26...
h6 {[%clk 0:00:31.2]} 27. Qc7 {[%clk 0:01:39.6]} 27... Qa8 {[%clk 0:00:27.3]}
28. Re7 {[%clk 0:01:36.5]} 28... Bxg2 {[%clk 0:00:24.2]} 29. Rxg7 {[%clk
0:01:34.9]} 29... Be4 {[%clk 0:00:23.8]} 30. b7 {[%clk 0:01:25.6]} 30... Qa2
{[%clk 0:00:13.1]} 31. Rf1 {[%clk 0:01:09]} 31... Qb2 {[%clk 0:00:12.4]} 32. Rg3
{[%clk 0:01:02]} 32... Bxb7 {[%clk 0:00:11.6]} 33. Qg7# {[%clk 0:01:01]} 1-0

[Event "Early-Titled-Tuesday-Blitz-September-12-2023"]
[Site "Chess.com"]
[Date "2023.09.12"]
[Round "8"]
[White "Duhless"]
[Black "ckgchess"]
[Result "1-0"]
[WhiteElo "2984"]
[BlackElo "2867"]
[TimeControl "180+1"]
[EndTime "9:27:30 PDT"]
[Termination "Duhless won on time"]

1. d4 {[%clk 0:03:00]} 1... Nf6 {[%clk 0:03:00.2]} 2. Nf3 {[%clk 0:03:00]} 2...
e6 {[%clk 0:02:58.1]} 3. Bg5 {[%clk 0:02:59.5]} 3... d5 {[%clk 0:02:56.5]} 4. e3
{[%clk 0:02:58.6]} 4... Be7 {[%clk 0:02:56.6]} 5. Bd3 {[%clk 0:02:57.9]} 5... h6
{[%clk 0:02:56.4]} 6. Bh4 {[%clk 0:02:57.4]} 6... c5 {[%clk 0:02:44]} 7. c3
{[%clk 0:02:55.3]} 7... Nbd7 {[%clk 0:02:36.5]} 8. Nbd2 {[%clk 0:02:53.3]} 8...
b6 {[%clk 0:02:34.8]} 9. O-O {[%clk 0:02:50.5]} 9... Bb7 {[%clk 0:02:34.2]} 10.
Ne5 {[%clk 0:02:48.8]} 10... Nxe5 {[%clk 0:02:33.7]} 11. dxe5 {[%clk 0:02:48.6]}
11... Nd7 {[%clk 0:02:34.5]} 12. Bxe7 {[%clk 0:02:47.3]} 12... Qxe7 {[%clk
0:02:35.4]} 13. f4 {[%clk 0:02:47.1]} 13... O-O {[%clk 0:02:25.1]} 14. Qh5
{[%clk 0:02:41.1]} 14... Rfd8 {[%clk 0:02:04.9]} 15. Nf3 {[%clk 0:02:38.1]}
15... d4 {[%clk 0:01:46.5]} 16. cxd4 {[%clk 0:02:31.9]} 16... Bxf3 {[%clk
0:01:45.2]} 17. Rxf3 {[%clk 0:02:22.1]} 17... cxd4 {[%clk 0:01:45.7]} 18. exd4
{[%clk 0:02:22]} 18... Nf8 {[%clk 0:01:44.8]} 19. Rg3 {[%clk 0:02:18.5]} 19...
Kh8 {[%clk 0:01:33.6]} 20. Be4 {[%clk 0:01:58]} 20... Rac8 {[%clk 0:01:31.8]}
21. Rd1 {[%clk 0:01:56.8]} 21... Rc4 {[%clk 0:01:17]} 22. Qg4 {[%clk 0:01:52.4]}
22... f5 {[%clk 0:01:13]} 23. exf6 {[%clk 0:01:50.5]} 23... Qxf6 {[%clk
0:01:13.6]} 24. h3 {[%clk 0:01:28.3]} 24... Rdxd4 {[%clk 0:01:09.5]} 25. Bd3
{[%clk 0:01:26.1]} 25... Rxf4 {[%clk 0:00:58.8]} 26. Bxc4 {[%clk 0:01:22.8]}
26... Rxg4 {[%clk 0:00:56.1]} 27. Rxg4 {[%clk 0:01:22.9]} 27... Qxb2 {[%clk
0:00:49.1]} 28. Rf4 {[%clk 0:01:21.9]} 28... Ng6 {[%clk 0:00:46.8]} 29. Rd8+
{[%clk 0:01:18.1]} 29... Kh7 {[%clk 0:00:46.5]} 30. Bd3 {[%clk 0:01:18.8]} 30...
Qc1+ {[%clk 0:00:42.4]} 31. Rf1 {[%clk 0:01:18.3]} 31... Qe3+ {[%clk 0:00:20.5]}
32. Kh2 {[%clk 0:01:17.7]} 32... h5 {[%clk 0:00:21.3]} 33. Rf3 {[%clk
0:01:16.9]} 33... Qe5+ {[%clk 0:00:21.4]} 34. Rg3 {[%clk 0:01:16.5]} 1-0

[Event "Early-Titled-Tuesday-Blitz-September-12-2023"]
[Site "Chess.com"]
[Date "2023.09.12"]
[Round "8"]
[White "LUISMIGUELOV"]
[Black "AttilaTurzo"]
[Result "0-1"]
[WhiteElo "2129"]
[BlackElo "2472"]
[TimeControl "180+1"]
[EndTime "9:27:32 PDT"]
[Termination "AttilaTurzo won on time"]

1. d4 {[%clk 0:03:00.9]} 1... Nf6 {[%clk 0:02:59.3]} 2. c3 {[%clk 0:03:00.8]}
2... e6 {[%clk 0:03:00]} 3. Bg5 {[%clk 0:03:00.4]} 3... c5 {[%clk 0:02:58]} 4.
e3 {[%clk 0:02:59.4]} 4... b6 {[%clk 0:02:57.9]} 5. Nf3 {[%clk 0:02:51.8]} 5...
Bb7 {[%clk 0:02:57.4]} 6. Bd3 {[%clk 0:02:50.4]} 6... h6 {[%clk 0:02:57.5]} 7.
Bxf6 {[%clk 0:02:47.8]} 7... Qxf6 {[%clk 0:02:55.8]} 8. Nbd2 {[%clk 0:02:46.1]}
8... Qd8 {[%clk 0:02:46.8]} 9. O-O {[%clk 0:02:45.6]} 9... Be7 {[%clk
0:02:45.4]} 10. Be4 {[%clk 0:02:35.6]} 10... Bxe4 {[%clk 0:02:36.8]} 11. Nxe4
{[%clk 0:02:34.7]} 11... d5 {[%clk 0:02:37.4]} 12. Ng3 {[%clk 0:02:30.2]} 12...
Nd7 {[%clk 0:02:37.2]} 13. Qa4 {[%clk 0:02:26.2]} 13... O-O {[%clk 0:02:36.2]}
14. Rad1 {[%clk 0:02:16.8]} 14... Qc7 {[%clk 0:02:34.3]} 15. h3 {[%clk
0:02:13.9]} 15... Bd6 {[%clk 0:02:32.5]} 16. Ne2 {[%clk 0:02:09.1]} 16... a6
{[%clk 0:02:23.9]} 17. Qc2 {[%clk 0:02:01.6]} 17... f5 {[%clk 0:02:20.2]} 18.
Qd2 {[%clk 0:01:55.7]} 18... c4 {[%clk 0:02:17.6]} 19. Nf4 {[%clk 0:01:51.5]}
19... Rf6 {[%clk 0:02:11.2]} 20. g3 {[%clk 0:01:48.4]} 20... b5 {[%clk 0:02:05]}
21. Nh5 {[%clk 0:01:43.4]} 21... Rf7 {[%clk 0:02:03.5]} 22. Nf4 {[%clk
0:01:42.9]} 22... Rf6 {[%clk 0:01:47.7]} 23. Nh5 {[%clk 0:01:41.8]} 23... Rf7
{[%clk 0:01:40.8]} 24. Nf4 {[%clk 0:01:41.4]} 24... Nf8 {[%clk 0:01:41.3]} 25.
Kg2 {[%clk 0:01:38]} 25... a5 {[%clk 0:01:37.2]} 26. b3 {[%clk 0:01:28.5]} 26...
b4 {[%clk 0:01:34.1]} 27. Rc1 {[%clk 0:01:18.5]} 27... Rc8 {[%clk 0:01:32]} 28.
h4 {[%clk 0:01:04.1]} 28... Qb7 {[%clk 0:01:29.3]} 29. Qb2 {[%clk 0:00:44.5]}
29... Rfc7 {[%clk 0:01:28.6]} 30. bxc4 {[%clk 0:00:36.8]} 30... dxc4 {[%clk
0:01:27.6]} 31. Ne2 {[%clk 0:00:19.3]} 31... g5 {[%clk 0:01:20.9]} 32. hxg5
{[%clk 0:00:18.5]} 32... hxg5 {[%clk 0:01:21.8]} 33. cxb4 {[%clk 0:00:03.7]}
33... g4 {[%clk 0:01:19.9]} 34. Ng1 {[%clk 0:00:02.8]} 34... axb4 {[%clk
0:01:16.4]} 0-1

[Event "Early-Titled-Tuesday-Blitz-September-12-2023"]
[Site "Chess.com"]
[Date "2023.09.12"]
[Round "8"]
[White "Daniel_Salinas"]
[Black "Ind1anStar"]
[Result "1-0"]
[WhiteElo "2388"]
[BlackElo "2516"]
[TimeControl "180+1"]
[EndTime "9:27:35 PDT"]
[Termination "Daniel_Salinas won by checkmate"]

1. e4 {[%clk 0:02:57.8]} 1... g6 {[%clk 0:02:57.2]} 2. d4 {[%clk 0:02:57.6]}
2... Bg7 {[%clk 0:02:57.7]} 3. Nc3 {[%clk 0:02:58.4]} 3... d6 {[%clk 0:02:58.2]}
4. Be3 {[%clk 0:02:59]} 4... Nd7 {[%clk 0:02:57.7]} 5. Qd2 {[%clk 0:02:59.2]}
5... a6 {[%clk 0:02:58]} 6. h4 {[%clk 0:02:57.9]} 6... h6 {[%clk 0:02:57.7]} 7.
O-O-O {[%clk 0:02:53.7]} 7... b5 {[%clk 0:02:57.8]} 8. h5 {[%clk 0:02:54.2]}
8... g5 {[%clk 0:02:57.6]} 9. f4 {[%clk 0:02:54.6]} 9... gxf4 {[%clk 0:02:57.9]}
10. Bxf4 {[%clk 0:02:55.5]} 10... Bb7 {[%clk 0:02:53.9]} 11. Bd3 {[%clk
0:02:54.8]} 11... Nb6 {[%clk 0:02:48.1]} 12. Nf3 {[%clk 0:02:53.3]} 12... c5
{[%clk 0:02:34.4]} 13. dxc5 {[%clk 0:02:11.4]} 13... b4 {[%clk 0:02:30.6]} 14.
Nd5 {[%clk 0:02:00.9]} 14... Nxd5 {[%clk 0:02:25.9]} 15. exd5 {[%clk 0:02:01.8]}
15... dxc5 {[%clk 0:02:01.7]} 16. Bc4 {[%clk 0:02:01]} 16... Nf6 {[%clk
0:01:53.1]} 17. Rhe1 {[%clk 0:01:52.8]} 17... Nxh5 {[%clk 0:01:48]} 18. d6
{[%clk 0:01:51.9]} 18... e6 {[%clk 0:01:40.6]} 19. Bxe6 {[%clk 0:01:44.8]} 19...
fxe6 {[%clk 0:01:40.5]} 20. Rxe6+ {[%clk 0:01:45.7]} 20... Kf8 {[%clk 0:01:41]}
21. Re7 {[%clk 0:01:35.1]} 21... Bxf3 {[%clk 0:01:29.7]} 22. Rf1 {[%clk
0:01:34.7]} 22... Nf6 {[%clk 0:00:57.7]} 23. Rxf3 {[%clk 0:01:28.6]} 23... Qa5
{[%clk 0:00:35.2]} 24. b3 {[%clk 0:01:03.3]} 24... Qxa2 {[%clk 0:00:28.5]} 25.
Be5 {[%clk 0:01:03]} 25... Kg8 {[%clk 0:00:07.2]} 26. Bxf6 {[%clk 0:01:02.8]}
26... Qa3+ {[%clk 0:00:04.7]} 27. Kb1 {[%clk 0:01:01.7]} 27... Bxf6 {[%clk
0:00:04.5]} 28. Qd5+ {[%clk 0:01:01.9]} 28... Kf8 {[%clk 0:00:02.9]} 29. Rxf6#
{[%clk 0:01:01.2]} 1-0